Cogmind - Beta 16 @@@ ROGUE MODE // 2025.11.19 @ 20:34:58 Player: Lazz Result: Self-destructed Performance ------------- Evolutions (1) 500 Regions Visited (4) 800 Robots Destroyed (20) 100 Value Destroyed (629) 629 Prototype IDs (24) 480 Alien Tech Used (0) 0 Bonus (300) 300 TOTAL SCORE: 2809 Bonus ------- Aligned with FarCom 300 Cogmind --------- Core Integrity 246/400 Matter 295/300 Energy 60/100 System Corruption 1% Temperature Cool (0) Movement Walking (190) Ox1 Location -9/Exiles Parts ------- > --- POWER (1) -------- (None) > --- PROPULSION (2) --- Aluminum Leg Aluminum Leg > --- UTILITY (3) ------ Large Storage Unit Seismic Detector Supersonic Drone Bay (1/1) > --- WEAPON (3) ------- (None) > --- INVENTORY (15) --- Ion Engine Fission Core Light Fission Core Light Treads Carbon-fiber Leg Large Storage Unit Light Armor Plating Medium Armor Plating Medium Armor Plating Improved EM Shotgun Improved EM Shotgun Mining Laser Peak State ------------ > --- POWER ------------ Light Nuclear Core > --- PROPULSION ------- Light Treads Light Treads > --- UTILITY ---------- Large Storage Unit Seismic Detector Supersonic Drone Bay > --- WEAPON ----------- Shock Rifle Shock Rifle Beam Rifle > --- INVENTORY -------- Ion Engine Fission Core Light Fission Core Light Treads Aluminum Leg Aluminum Leg Carbon-fiber Leg Large Storage Unit Light Armor Plating Medium Armor Plating Medium Armor Plating Improved EM Shotgun Improved EM Shotgun Mining Laser [Rating: 26] Favorites ----------- Power Light Nuclear Core Engine Light Ion Engine Power Core Light Nuclear Core Propulsion Light Treads Treads Light Treads Leg Aluminum Leg Utility Seismic Detector Device Seismic Detector Storage Large Storage Unit Protection Medium Armor Plating Weapon Beam Rifle Energy Gun Beam Rifle Ballistic Gun Light Assault Rifle Special Weapon Mining Laser Build | -11 -10 -9 -9 -9 ------- Run | Yrd Mat Mat Min Exi Slots Evolved 2 | . . 2 . . Power . | . . . . . Propulsion . | . . . . . Utility 1 | . . 1 . . Weapon 1 | . . 1 . . Parts Attached 22 | 8 2 3 3 6 Power 2 | 1 . . 1 . Engine 1 | 1 . . . . Core 1 | . . . 1 . Reactor . | . . . . . Propulsion 4 | 2 . . . 2 Treads 2 | 2 . . . . Leg 2 | . . . . 2 Wheel . | . . . . . Hover . | . . . . . Flight . | . . . . . Utility 7 | 3 1 2 . 1 Device 3 | 2 . . . 1 Storage 2 | 1 1 . . . Processor . | . . . . . Hackware . | . . . . . Protection 2 | . . 2 . . Artifact . | . . . . . Weapon 9 | 2 1 1 2 3 Energy Gun 7 | 1 1 1 2 2 Energy Cannon . | . . . . . Ballistic Gun 1 | 1 . . . . Ballistic Cannon . | . . . . . Launcher . | . . . . . Special Weapon 1 | . . . . 1 Impact Weapon . | . . . . . Slashing Weapon . | . . . . . Piercing Weapon . | . . . . . Special Melee Weapon . | . . . . . Unidentified Prototypes 2 | . . . 1 1 Parts Lost 8 | . . . . 8 Power 1 | . . . . 1 Propulsion 2 | . . . . 2 Utility . | . . . . . Weapon 5 | . . . . 5 Highest Loss Streak 6 | . . . . 6 To Critical Strikes 1 | . . . . 1 Average Backups 11 | 2 7 12 13 13 Power 2 | . 1 1 1 2 Propulsion 2 | 1 2 2 3 3 Utility 4 | . 1 5 5 4 Weapon 2 | . 2 3 3 3 Tool/Special . | . . . . . Unused Backups 12 | . . 3 1 8 Power 3 | . . . . 3 Propulsion 2 | . . 1 . 1 Utility 4 | . . 1 . 3 Weapon 3 | . . 1 1 1 Tool/Special . | . . . . . Average Slot Usage (%) 95 | . 100 98 93 95 Engine 4 | . 14 11 4 . Core 6 | . . . 6 10 Treads 22 | . 28 22 22 21 Device 14 | . 14 10 11 18 Storage 11 | . 14 11 11 11 Protection 2 | . . 11 4 . Energy Gun 30 | . 25 31 33 30 Special Weapon 1 | . . . . 2 Peak Build Rating 26 | 7 8 13 16 26 Average Rating 15 | 5 7 11 14 20 On Entrance 8 | . 7 8 11 16 Avg Prop Armor Cover (%) . | . . . . . Naked Turns . | . . . . . Heaviest Build 41 | 12 28 40 41 36 Greatest Support 40 | 40 40 40 40 40 Greatest Overweight (x) 1 | . . . 1 1 Average Overweight (x) . | . . . . . Largest Inventory Capacity 15 | 8 15 15 15 15 Average Capacity 14 | 7 14 15 15 15 Most Carried 15 | 4 12 15 15 15 Average Carried 11 | 2 7 12 13 13 Final Capacity 15 | 8 15 15 15 15 Final Carried 15 | 4 12 13 15 12 Class Distribution -------------------- 56% | Gunner 23% | Tank 16% | Mutant Dominant Class ---------------- Mutant | -10/Materials Tank | -9/Materials Gunner | -9/Mines Gunner | -9/Exiles Resources | -11 -10 -9 -9 -9 ----------- Run | Yrd Mat Mat Min Exi Matter Collected 412 | 285 . 57 20 50 Remotely 112 | 112 . . . . Salvage Created 903 | 96 60 328 227 192 Parts 58 | 5 1 23 12 17 Haulers Intercepted 3 | . 1 2 . . Recyclers Shooed 1 | . . 1 . . Parts Field Recycled . | . . . . . Retrieved Matter . | . . . . . Parts Self-Destructed . | . . . . . Prevented . | . . . . . Parts Restored . | . . . . . Kills | -11 -10 -9 -9 -9 ------- Run | Yrd Mat Mat Min Exi Combat Hostiles Destroyed 13 | . . 4 5 4 Guns 11 | . . 4 4 3 AOE 2 | . . . 1 1 Classes Destroyed 10 | 2 1 4 1 2 Tunneler 2 | 2 . . . . Hauler 3 | . 1 2 . . Recycler 1 | 1 . . . . Watcher 1 | . . 1 . . Grunt 6 | . . 2 4 . Brawler 1 | . . 1 . . Duelist 2 | . . . 1 1 Sentry 1 | . . 1 . . Hunter 1 | . . . . 1 Programmer 2 | . . . . 2 Best Kill Streak 3 | 3 1 2 3 2 Combat Bots Only 3 | . . 1 3 2 Max Kills in Single Turn 1 | 1 1 1 1 1 Gunslinging . | . . . . . Exploded 1 | . . . 1 1 Melee . | . . . . . Uniques/NPCs Destroyed . | . . . . . Combat | -11 -10 -9 -9 -9 -------- Run | Yrd Mat Mat Min Exi Hostile Shots Fired 98 | . . 13 22 63 Missed 21 | . . 1 2 18 Hits 77 | . . 12 20 45 Projectile 77 | . . 12 20 45 Critical Strikes 4 | . . . 1 3 Damage Taken 1143 | . 19 141 290 693 Core 154 | . . . 55 99 Absorbed by Shields . | . . . . . Core Remaining (%) 100 | 100 100 . . . Volleys Fired 97 | 7 8 19 14 49 Largest 3 | 2 2 3 3 3 Hottest 201 | 70 90 146 141 201 Shots Fired 188 | 14 16 53 26 79 Gun 153 | 14 16 53 26 44 Cannon . | . . . . . Launcher . | . . . . . Special 35 | . . . . 35 Kinetic 7 | 7 . . . . Thermal 110 | 7 8 34 6 55 Explosive . | . . . . . Electromagnetic 71 | . 8 19 20 24 Robot Hit Streak 14 | 8 7 12 14 5 Robot Miss Streak 5 | 2 3 3 5 4 Penetration Max . | . . . . . Secondary Targets 1 | . . . 1 . Max Gunslinging Chain 1 | . . . 1 . Shots Hit Robots 84 | 9 10 32 17 16 Core Hits 38 | 4 3 13 11 7 Critical Kills . | . . . . . Critical Parts Destroyed . | . . . . . Critical Strikes 2 | . 1 1 . . Burn 2 | . 1 1 . . Melee Attacks . | . . . . . Impact . | . . . . . Slashing . | . . . . . Piercing . | . . . . . Sneak Attacks . | . . . . . Combat Hostiles . | . . . . . Follow-up Attacks . | . . . . . Damage Inflicted 1426 | 101 172 455 398 300 Guns 1172 | 100 123 438 266 245 Cannons . | . . . . . Explosions 229 | . 42 . 132 55 Melee . | . . . . . Ramming 25 | 1 7 17 . . Kinetic 24 | 24 . . . . Thermal 756 | 76 115 226 162 177 Explosive . | . . . . . Electromagnetic 621 | . 50 212 236 123 Impact . | . . . . . Slashing . | . . . . . Piercing . | . . . . . Highest Corruption 1 | . . . . 1 Average Corruption 1 | . . . . 1 Corruption Purged . | . . . . . Corruption Blocked . | . . . . . Overload Shots . | . . . . . Overflow Damage . | . . . . . Projectiles . | . . . . . Explosions . | . . . . . Melee . | . . . . . Knockbacks . | . . . . . Impact . | . . . . . Kinetic . | . . . . . Secondary . | . . . . . Self-Inflicted Damage 52 | . 19 . 33 . Shots 2 | . 1 . 1 . Rammed 8 | 1 3 4 . . Targets Rammed 8 | 1 3 4 . . Kicked . | . . . . . Crushed . | . . . . . Highest Temperature 429 | 50 132 360 352 429 Average Temperature 129 | 22 51 126 130 151 Received Heat Transfer 252 | . . 66 156 30 Effects 8 | . . 2 3 3 Shutdowns 2 | . . 1 . 1 Energy Bleed 1 | . . . . 1 Interference 5 | . . 1 3 1 Siege Activations . | . . . . . Martial Activations . | . . . . . Shielding Activations . | . . . . . Robots Disrupted . | . . . . . Combat Hostiles . | . . . . . Robots Corrupted . | . . . . . Combat Hostiles . | . . . . . Parts Fried . | . . . . . Impact Corruptions . | . . . . . Robots Melted . | . . . . . Combat Hostiles . | . . . . . Parts Melted 3 | . . 1 . 2 Heat Transferred 1754 | 222 346 703 174 309 Parts Sabotaged . | . . . . . Parts Stolen . | . . . . . Parts Stripped . | . . . . . Power Chain Reactions 3 | . 1 . 1 1 Alert | -11 -10 -9 -9 -9 ------- Run | Yrd Mat Mat Min Exi Maximum Alert Level . | . . . . . Low Security (%) 100 | 100 100 100 100 . Level 1 . | . . . . . Level 2 . | . . . . . Level 3 . | . . . . . Level 4 . | . . . . . Level 5 . | . . . . . High Security . | . . . . . Max Security . | . . . . . Peak Influence 102 | 5 15 61 102 . Initial 13 | . . . 13 . Average 24 | 1 1 31 35 . Influence Increases 415 | 15 25 156 139 80 Destroy 0b10 Robot/C 260 | . . 80 100 80 Destroy 0b10 Robot/NC 35 | 15 5 15 . . Destroy Leader 58 | . 2 36 20 . Successful Hack 9 | . . 9 . . Disable Machine 30 | . 15 . 15 . Destroy Structure 8 | . 3 1 4 . Lose Combat Pursuer 15 | . . 15 . . Influence Decreases 415 | 15 25 120 175 80 Entered New Map 23 | . . . 23 . Time Decay 336 | 15 25 120 152 24 Lost Part 56 | . . . . 56 Squads Dispatched 2 | . . 2 . . Investigation 2 | . . 2 . . Extermination . | . . . . . Reinforcement . | . . . . . Assault . | . . . . . Garrison . | . . . . . Intercept . | . . . . . Searches Triggered . | . . . . . Construction Impeded . | . . . . . Haulers Reinforced . | . . . . . Active Scanning Responses . | . . . . . Cargo Convoy Interrupts . | . . . . . Stealth | -11 -10 -9 -9 -9 --------- Run | Yrd Mat Mat Min Exi Distress Signals 2 | . . 2 . . Communications Jammed . | . . . . . Distress Signals . | . . . . . Times Spotted 26 | . 2 10 5 9 Peak Tracking Total 5 | . 1 4 3 5 Tactical Retreats 1 | . . 1 . . Traps | -11 -10 -9 -9 -9 ------- Run | Yrd Mat Mat Min Exi Traps Triggered 1 | . 1 . . . Indirectly . | . . . . . Trap Hack Attempts . | . . . . . Triggered . | . . . . . Disarmed . | . . . . . Reprogrammed . | . . . . . Reused . | . . . . . Traps Extracted . | . . . . . Installed . | . . . . . Triggered . | . . . . . Machines | -11 -10 -9 -9 -9 ---------- Run | Yrd Mat Mat Min Exi Machines Disabled 7 | . 1 . 1 5 Max in Single Turn 1 | . 1 . 1 1 Machines Repaired . | . . . . . Machines Dismantled . | . . . . . Machines Sabotaged . | . . . . . Overloaded Fab Kills . | . . . . . Hacking | -11 -10 -9 -9 -9 --------- Run | Yrd Mat Mat Min Exi Machines Accessed 8 | . 1 3 . 4 Terminals 4 | . 1 3 . . Fabricators . | . . . . . Repair Stations . | . . . . . Recycling Units . | . . . . . Scanalyzers . | . . . . . Garrison Access . | . . . . . Total Hacks 40 | . 3 10 . 27 Successful 31 | . 1 3 . 27 Failed 9 | . 2 7 . . Catastrophic 1 | . . 1 . . Database Lockouts . | . . . . . Manual 1 | . . . . 1 Terminals 13 | . 3 10 . . Fabricators . | . . . . . Repair Stations . | . . . . . Recycling Units . | . . . . . Scanalyzers . | . . . . . Garrison Access . | . . . . . Terminal Hacks 31 | . 1 3 . 27 Record 26 | . . . . 26 Locate Traps 2 | . 1 1 . . Zone Layout 2 | . . 2 . . Proto ID Catalog 1 | . . . . 1 Fabricator Hacks . | . . . . . Repair Station Hacks . | . . . . . Recycling Unit Hacks . | . . . . . Scanalyzer . | . . . . . Garrison Access Hacks . | . . . . . Unauthorized Hacks . | . . . . . Terminals . | . . . . . Fabricators . | . . . . . Repair Stations . | . . . . . Recycling Units . | . . . . . Scanalyzers . | . . . . . Garrison Access . | . . . . . Data Cores Recovered . | . . . . . Used . | . . . . . Hacking Detections 4 | . 1 3 . . Full Trace Events 3 | . 1 2 . . Feedback Events . | . . . . . Feedback Blocked . | . . . . . Robot Schematics Acquired . | . . . . . Robots Built . | . . . . . Authchips . | . . . . . Time . | . . . . . Total Robot Build Rating . | . . . . . Part Schematics Acquired . | . . . . . Parts Built . | . . . . . Authchips . | . . . . . Time . | . . . . . Total Part Build Rating . | . . . . . Part Studies Acquired . | . . . . . Parts Repaired . | . . . . . Time . | . . . . . Parts Recycled . | . . . . . Recycled Matter . | . . . . . Retrieved Matter . | . . . . . Retrieved Components . | . . . . . Parts Scanalyzed . | . . . . . Part Schematics Acquired . | . . . . . Parts Damaged . | . . . . . Bothacking | -11 -10 -9 -9 -9 ------------ Run | Yrd Mat Mat Min Exi Used RIF Installer . | . . . . . Robots Hacked . | . . . . . Non-combat . | . . . . . Combat . | . . . . . Robot Hacks Applied . | . . . . . Relay Couplers Released . | . . . . . Fabnet Peak Effective % . | . . . . . Robots Rewired . | . . . . . Allies Hacked . | . . . . . Hacks Repelled . | . . . . . Allies | -11 -10 -9 -9 -9 -------- Run | Yrd Mat Mat Min Exi Total Allies . | . . . . . Largest Group . | . . . . . Highest-Rated Group . | . . . . . Highest-Rated Ally . | . . . . . Total Orders 1 | . . . . 1 EXPLORE 1 | . . . . 1 Ally Attacks . | . . . . . Total Damage . | . . . . . Kills . | . . . . . Allies Corrupted . | . . . . . Allies Melted . | . . . . . Intel | -11 -10 -9 -9 -9 ------- Run | Yrd Mat Mat Min Exi Active Infowar (turns) 1636 | 14 210 286 449 677 Seismic 1636 | 14 210 286 449 677 Robot Analysis Total . | . . . . . Derelict Logs Recovered 1 | . . . 1 . Drone Launches 1 | . . . . 1 Drone Recoveries 1 | . . . . 1 Exploration | -11 -10 -9 -9 -9 ------------- Run | Yrd Mat Mat Min Exi Turns Passed 1973 | 107 210 295 449 912 Spaces Moved 964 | 48 107 127 244 438 Core 6 | 6 . . . . Treads 952 | 42 107 127 244 432 Legs 6 | . . . . 6 Wheels . | . . . . . Hover . | . . . . . Flight . | . . . . . Fastest Speed 50 | 50 160 160 160 160 Average Speed 159 | 146 160 160 161 160 Slowest Speed 240 | 160 160 160 240 190 Overloaded Moves . | . . . . . Propulsion Burnouts . | . . . . . Robots Hopped . | . . . . . Potential Cave-ins 5 | . . . . 5 Cave-ins Triggered . | . . . . . Exploration Rate (%) 37 | 4 24 19 54 84 Regions Visited 4 Branch Regions 2 Pre-discovered Areas . | . . . . . Known Exits Taken . | . . . . . Unknown Exits Taken 4 | 1 1 1 1 . Scrap Searched 2 | . . . 2 . Spaces Dug 10 | . . . . 10 Terrain Destroyed 23 | . 3 . 4 16 Melee . | . . . . . Projectile 16 | . . . . 16 AOE 7 | . 3 . 4 . Terrain Rammed . | . . . . . Walls Destroyed . | . . . . . Machines Disabled . | . . . . . Actions | -11 -10 -9 -9 -9 --------- Run | Yrd Mat Mat Min Exi Total 1154 | 69 127 175 277 506 Wait 32 | . . 13 14 5 Move 960 | 47 106 126 243 438 Hop . | . . . . . Pick Up 19 | 4 6 5 1 3 Fast Attach 14 | 8 2 1 . 3 Attach 4 | . . 1 1 2 Detach 3 | 1 1 . 1 . Swap 7 | . 1 2 2 2 Drop 10 | 1 . 4 1 4 Fire 97 | 7 8 19 14 49 Melee . | . . . . . Ram . | . . . . . Kick . | . . . . . Crush 8 | 1 3 4 . . Escape Stasis . | . . . . . Rewire . | . . . . . Trap . | . . . . . Miscellaneous . | . . . . . Route ------- -11/Scrapyard -10/Materials -9/Materials -9/Mines (discovered 3 exits: [*Mat x2] / *Exi) -9/Exiles History --------- Turn | Location | Event 14 | -11/Scrapyard | Discovered new exit (range 15) 108 | -11/Scrapyard | Entered Materials 259 | -10/Materials | Discovered new exit (range 9) 303 | -10/Materials | Build established: Mutant 318 | -10/Materials | Entered another Materials area 318 | -9/Materials | Evolved 2 slots: Utility x1, Weapon x1 560 | -9/Materials | Discovered new exit (range 14) 609 | -9/Materials | Build established: Tank 613 | -9/Materials | Entered Mines 678 | -9/Mines | Discovered new exit (range 3) 1033 | -9/Mines | Discovered new exit (range 3) 1052 | -9/Mines | Deemed a non-threat by the Exiles lab entrance 1054 | -9/Mines | Discovered new exit (range 5) 1062 | -9/Mines | Entered Exiles 1085 | -9/Exiles | Build established: Gunner 1106 | -9/Exiles | Met 8R-AWN 1132 | -9/Exiles | Met EX-HEX 1186 | -9/Exiles | Met EX-BIN 1303 | -9/Exiles | Aligned with FarCom system 1305 | -9/Exiles | Given EX-Vault access code 1366 | -9/Exiles | Opened EX-Vault 1375 | -9/Exiles | Found Prototype Device 1375 | -9/Exiles | Identified Supersonic Drone Bay 1414 | -9/Exiles | Warned to stay clear of 0b10 Research branches 1432 | -9/Exiles | Exiles lab attacked by MAIN.C 1974 | -9/Exiles | Self-destructed Last Messages --------------- 01952_ L-31 Rogue destroyed. 01952_ Machine disabled. 01956_ Penetrated by Slug. 01956_ Lgt. Nuclear Core destroyed. 01956_ Critical hit (Destroy). 01956_ Lgt. Treads destroyed. 01957_ Penetrated by Slug. 01957_ Lgt. Treads destroyed. 01962_ Penetrated by Slug. 01963_ Slug penetrates Wall. 01965_ Penetrated by Slug. 01965_ Shock Rifle destroyed. 01968_ Penetrated by Slug. 01969_ Machine disabled. 01969_ Trailblazer retrieved by Supersonic Drone Bay (no repairs). 01971_ Penetrated by Slug. 01971_ Beam Rifle destroyed. 01972_ Penetrated by Slug. 01972_ Shock Rifle destroyed. Map ----- +----------------------------------------------------+ | ?????????# " " | | ???????????# | | ?????????????# | | ??????????????# | | ??????????????## *= | | ???????????????##" %=%% | | ????????????????#""" %=%% """""" | | ???????????????##" %% ######""" | | ???????????????# ""##????#####""" | | ??????????????## ""##?????????##""" | | ??????????????#" % """##???????????#"""" | | ??????????????#" ""#????????????#"" | | ??????????????# ########??####"""" | | ??????????????#" b ## ####""" | | ??????????????#"" h % % """" | | ??????????????##"" g % | | ???????????????#"""" h | | ???????????????## % | | ????????????????#" g " " | | ????????????????#"""" ""## ##""" " | | ????????????????#"" ""#### #???##"" | | ????????????????#" """"##??# #??????? | | ????????????????#""" """#??## ####???? | | ????????????????## ""##??#! "!#???? | | ?????????????????#"" ""##???#" !#???? | | ?????????????????##""" @ %= ##????#" "#???? | | ??????????????????##"""" ##?????#!!""!"#???? | | ???????????????????### #??????########???? | | ?????????????????????##### ##?????????????????? | | ?????????????????????????## #??????????????????? | | ??????????????????????????# #??????????????????? | | ??????????????????????????# #??????????????????? | | ??????????????????????????# #??????????????????? | | ???????????????#######????# !#??????????????????? | | "#?????"""""???#""""""????# %#??????????????????? | | "????"""""""???#"""""""???# [#??????????????????? | | "#??"""""" "#??#" """"#??# #??????????????????? | | "#""#""" """???#"" """???# #??????????????????? | | "#""#"" ""???#"" ""???# #??????????????????? | | ##""###"""########"""###### ########?####??????? | | """"""" """""""" """" " *="""" "#"""""#?????? | | """""" """""" =% |%[ "#"" ""#?????? | | *|! [! " ""#?????? | | " " "#?????? | | " """#?????? | | "" #"" ""#?????? | | """" " " """ """ """""#"""""#?????? | | #######"""### "###"""########"""######?####??????? | | "?# #"" ""#""#"" ""????"" ""#??????????????? | | "## #""" ""# "#""" ""#???"" """#??????????????? | +----------------------------------------------------+ Best States ------------- Heat Dissipation 28 Energy Generation 14 Energy Capacity 160 Matter Stores 300 Matter Capacity 300 Sight Range 16 Terrain Scan Density 10 Armor Coverage 375 Evasion (%) 40 Recoil Reduction 2 Item Schematics ----------------- None Robot Schematics ------------------ None Fabricated ------------ Nothing Repaired ---------- Nothing Studied --------- None Alien Tech Used ----------------- None Achievements -------------- None Challenges ------------ None Game ------ Seed BiocellPiercingCartridge Manual? 0 Play Time 00:16:00 Cumulative 89.6 hours Start 2025.11.19 @ 20:21:30 End 2025.11.19 @ 20:34:58 Sessions 1 Manual Loads 0 Difficulty Rogue Special Mode None Game No. 124 Rogue 124 Adventurer 0 Explorer 0 Win Type - Total 1 Types 1/0/0/0/0/0/0/0/0/0 Lore% 54 Gallery% 52 Achievement% 39 Wizard Run 0 Options --------- Layout 2 ASCII 0 Keyboard 0 Movement Vi Keybinds 0 Fullscreen 1 Font 16/SmallcapsGlow Map View 50x44 Zoom Use 0% Tactical HUD 1 Map Filters NONE Filters NONE Steam SD RUN: ff60f26f-032d-4bce-b34c-464dd5e7771d